fUSD/lending_fUSD_20250929
["ID","MTS","AMOUNT","RATE_DAILY","PERIOD"]
[388440664,1759169426454,1444.0,0.00029041,120]
[388440680,1759169431801,-159.0,0.00016618,2]
[388440681,1759169431811,-1200.0,0.00016618,2]
[388440682,1759169431822,-100.65947331,0.00016618,2]
[388440683,1759169431836,-149.34052669,0.00016618,2]
[388440684,1759169431846,-195.0,0.00016619,2]
[388440685,1759169431857,-150.0,0.00016619,2]
[388440686,1759169431868,-150.0,0.00016619,2]
[388440687,1759169431878,-150.0,0.00016619,2]
[388440688,1759169431888,-150.0,0.00016619,2]
[388440689,1759169431900,-150.0,0.00016619,2]
[388440690,1759169431910,-150.0,0.00016619,2]
[388440691,1759169431920,-150.0,0.00016619,2]
[388440692,1759169431931,-150.0,0.00016619,2]
[388440693,1759169431941,-63.82736184,0.00016619,2]
[388440694,1759169431953,-86.17263816,0.00016619,2]
[388440695,1759169431963,-150.0,0.00016619,2]
[388440696,1759169431973,-545.78800438,0.00016788,2]
[388440697,1759169431985,-6222.19490196,0.00016788,2]
[388440704,1759169432573,-2108.01942602,0.00016788,2]
[388440705,1759169432585,-123.99766764,0.00016788,2]
[388440706,1759169432594,-412.75,0.0001679,2]
[388440707,1759169432603,-223.45137472,0.0001686,2]
[388440708,1759169432619,-664.05656309,0.0001686,2]
[388440709,1759169432629,-200.0,0.00016863,2]
[388440710,1759169432638,-200.0,0.00016863,2]
[388440711,1759169432648,-200.0,0.00016864,2]
[388440712,1759169432658,-200.0,0.00016864,2]
[388440713,1759169432667,-200.0,0.00016864,2]
[388440714,1759169432676,-200.0,0.00016864,2]
[388440715,1759169432685,-2054.17564625,0.00016873,2]
[388440716,1759169432695,-150.0,0.00016883,2]
[388440717,1759169432704,-2054.17564625,0.00016885,2]
[388440718,1759169432713,-400.0,0.000169,6]
[388440719,1759169432722,-165.60462916,0.000169,2]
[388440720,1759169432732,-156.19622201,0.000169,2]
[388440721,1759169432741,-523.41868768,0.000169,2]
[388440722,1759169432750,-5293.14733984,0.000169,2]
[388440723,1759169432760,-150.0,0.00016927,2]
[388440724,1759169432769,-550.0,0.00016961,2]
[388440725,1759169432778,-8260.13072239,0.00016962,2]
[388440726,1759169432788,-151.0,0.00016962,2]
[388440727,1759169432798,-2011.09454333,0.00016962,2]
[388440728,1759169432810,-454.92897089,0.00016962,2]
[388440729,1759169432823,-533.97648578,0.00016962,2]
[388440730,1759169432833,-239.84119403,0.00016962,2]
[388440731,1759169432843,-599.60298507,0.00016962,2]
[388440732,1759169432852,-500.0,0.00016973,2]
[388440733,1759169432861,-500.0,0.00016973,2]
[388440734,1759169432871,-500.0,0.00016973,2]
[388440735,1759169432880,-507.10051927,0.00016973,2]
[388440736,1759169432889,-500.0,0.00016973,2]
[388440737,1759169432899,-500.0,0.00016973,2]
[388440738,1759169432908,-500.0,0.00016973,2]
[388440739,1759169432917,-500.0,0.00016973,2]
[388440740,1759169432927,-500.0,0.00016973,2]
[388440741,1759169432937,-500.0,0.00016973,2]
[388440742,1759169432946,-500.0,0.00016973,2]
[388440743,1759169432956,-500.0,0.00016973,2]
[388440744,1759169432965,-500.0,0.00016973,2]
[388440745,1759169432974,-500.0,0.00016973,2]
[388440746,1759169432984,-500.0,0.00016973,2]
[388440747,1759169432993,-500.0,0.00016973,2]
[388440748,1759169433426,-500.0,0.00016973,2]
[388440749,1759169433441,-500.0,0.00016973,2]
[388440750,1759169433451,-500.0,0.00016973,2]
[388440751,1759169433460,-507.95810235,0.00016973,2]
[388440752,1759169433471,-500.0,0.00016973,2]
[388440753,1759169433481,-500.0,0.00016973,2]
[388440754,1759169433491,-500.0,0.00016973,2]
[388440755,1759169433502,-500.0,0.00016973,2]
[388440756,1759169433512,-1030.76,0.00016973,2]
[388440757,1759169433522,-265.57638783,0.00016984,2]
[388440758,1759169433531,-180.40481695,0.00016984,2]
[388440759,1759169433541,-500.0,0.00016984,2]
[388440760,1759169433551,-240.61004959,0.00016984,2]
[388440761,1759169433561,-494.31333653,0.00016984,2]
[388440762,1759169433571,-3079.16924523,0.00016985,2]
[388440765,1759169434939,-373.08500807,0.00016985,2]
[388440766,1759169434949,-458.41499193,0.00016985,2]
[388440767,1759169435470,-2020.07404174,0.00016985,2]
[388440768,1759169435519,-7880.00376569,0.00016985,2]
[388440769,1759169435535,-654.56305337,0.00016985,2]
[388440770,1759169435548,-5910.73296888,0.00016985,2]
[388440771,1759169435594,-2905.0898205,0.00016985,2]
[388440772,1759169435606,-551.1,0.00016985,2]
[388440773,1759169435618,-9290.87178556,0.00016985,2]
[388440774,1759169437726,-548.12401746,0.00016618,2]
[388440775,1759169437736,-8313.77598254,0.00016985,2]
[388440776,1759169437779,-2159.91665303,0.00016985,2]
[388440777,1759169437792,-972.8,0.00016985,2]
[388440778,1759169437805,-1260.0,0.00016985,2]
[388440779,1759169437820,-1118.10003,0.00016985,2]
[388440780,1759169437833,-281.55,0.00016985,2]
[388440781,1759169437889,-72.45324496,0.00016985,2]
[388440782,1759169437900,-875.08121692,0.00016985,2]
[388440783,1759169437996,-543.02895058,0.00016985,2]
[388440784,1759169438007,-595.01383255,0.0001699,2]
[388440964,1759169439727,-404.98616745,0.0001699,2]
[388440966,1759169439737,-1026.00842951,0.0001699,2]
[388440968,1759169439747,-500.0,0.0001699,2]
[388440970,1759169439756,-500.0,0.0001699,2]
[388440972,1759169439767,-500.0,0.0001699,2]
[388440975,1759169439778,-10.52000254,0.0001699,2]
[388440977,1759169439791,-312.09069746,0.0001699,2]
[388440979,1759169439802,-504.43282494,0.0001699,2]
[388440981,1759169439814,-119.15427954,0.0001699,2]
[388440983,1759169439825,-151.0,0.0001699,2]
[388440986,1759169439835,-151.0,0.0001699,2]
[388440988,1759169439845,-134.34572046,0.0001699,2]
[388440990,1759169439857,-65.65427954,0.0001699,2]
[388440992,1759169439867,-282.53070046,0.0001699,2]
[388440995,1759169439887,-217.46929954,0.0001699,2]
[388440997,1759169439903,-500.0,0.0001699,2]
[388441000,1759169439914,-500.0,0.0001699,2]
[388441002,1759169439924,-500.0,0.0001699,2]
[388441004,1759169439934,-500.0,0.0001699,2]
[388441006,1759169439944,-151.0,0.0001699,2]
[388441008,1759169439954,-168.53701482,0.0001699,2]
[388441010,1759169439964,-150.0,0.0001699,2]
[388441012,1759169439974,-500.0,0.0001699,2]
[388441014,1759169439984,-500.0,0.0001699,2]
[388441016,1759169439994,-500.0,0.0001699,2]
[388441019,1759169440004,-150.0,0.0001699,2]
[388441021,1759169440015,-150.0,0.0001699,2]
[388441023,1759169440026,-150.0,0.0001699,2]
[388441025,1759169440035,-500.0,0.0001699,2]
[388441027,1759169440046,-150.0,0.0001699,2]
[388441029,1759169440056,-1501.0,0.0001699,2]
[388441031,1759169440065,-599.0,0.0001699,2]
[388441033,1759169440075,-150.0,0.0001699,2]
[388441036,1759169440085,-500.0,0.0001699,2]
[388441038,1759169440095,-150.0,0.0001699,2]
[388441040,1759169440106,-150.0,0.0001699,2]
[388441042,1759169440116,-150.0,0.0001699,2]
[388441044,1759169440126,-151.0,0.00016997,2]
[388441046,1759169440136,-151.0,0.00016997,2]
[388441048,1759169440146,-151.0,0.00016997,2]
[388441050,1759169440157,-243564.4200736,0.00017,2]
[388441053,1759169440169,-122636.999999,0.00017,2]
[388441056,1759169440187,-332.01,0.00017,2]
[388441058,1759169440199,-3915.99999993,0.00017,2]
[388441061,1759169440217,-11819.67258003,0.00017,2]
[388441313,1759169442879,-7836.0,0.00017,2]
[388441316,1759169442897,-39746.7828684,0.00017,2]
[388441318,1759169442908,-250.0,0.00017,2]
[388441321,1759169442920,-506.98309254,0.00017,2]
[388441324,1759169442931,-150.0,0.00017,2]
[388441326,1759169442941,-150.0,0.00017,2]
[388441328,1759169442951,-150.0,0.00017,2]
[388441331,1759169442961,-150.0,0.00017,2]
[388441332,1759169442970,-150.0,0.00017,2]
[388441335,1759169442980,-500.0,0.00017,2]
[388441337,1759169442991,-150.0,0.00017,2]
[388441339,1759169443001,-150.0,0.00017,2]
[388441341,1759169443013,-150.0,0.00017,2]
[388441343,1759169443023,-150.0,0.00017,2]
[388441345,1759169443034,-8565.75555911,0.00017017,2]
[388441347,1759169443044,-151.0,0.00017066,2]
[388441349,1759169443055,-5293.14733983,0.00017067,2]
[388441352,1759169443066,-15059.76112148,0.00017069,2]
[388441354,1759169443081,-299.60939855,0.00017069,2]
[388441357,1759169443102,-1444.85442055,0.00017069,2]
[388441360,1759169443124,-46345.84846856,0.00017069,2]
[388441363,1759169443136,-5628.63126363,0.00017069,2]
[388441376,1759169443254,-195.04,0.0001699,2]
[388441379,1759169443265,-17797.95169998,0.00017069,2]
[388441767,1759169446907,-195.04,0.0001699,2]
[388441769,1759169446922,-844.6,0.0001699,2]
[388441772,1759169446936,-844.6,0.0001699,2]
[388441774,1759169446952,-337.98872836,0.00017069,2]
[388441777,1759169446968,-13352.97127164,0.00017069,2]
[388441781,1759169446992,-33384.88296952,0.00017069,2]
[388441783,1759169447006,-8882.6885148,0.00017072,2]
[388441785,1759169447018,-500.0,0.00017073,2]
[388441788,1759169447034,-500.0,0.00017073,2]
[388441790,1759169447049,-165.60462916,0.00017088,2]
[388441793,1759169447065,-9211.34798985,0.00017127,2]
[388441795,1759169447079,-150.0,0.00017147,2]
[388441798,1759169447096,-9552.16786547,0.00017182,2]
[388441801,1759169447110,-473.47,0.000172,2]
[388441803,1759169447124,-700.0,0.00017218,2]
[388441805,1759169447141,-5293.14733983,0.00017233,2]
[388441808,1759169447155,-150.0,0.00017235,2]
[388441810,1759169447170,-150.0,0.00017235,2]
[388441813,1759169447184,-9905.5980765,0.00017237,2]
[388441815,1759169447199,-1030.76,0.00017247,2]
[388441818,1759169447215,-150.0,0.00017257,2]
[388441821,1759169447231,-500.0,0.00017257,2]
[388441823,1759169447244,-150.0,0.00017257,2]
[388441825,1759169447258,-500.0,0.00017257,2]
[388441828,1759169447272,-500.0,0.00017257,2]
[388441830,1759169447284,-150.0,0.00017257,2]
[388441832,1759169447296,-150.0,0.00017257,2]
[388441835,1759169447310,-500.0,0.00017257,2]
[388441837,1759169447327,-150.0,0.00017257,2]
[388441839,1759169447338,-150.0,0.00017257,2]
[388441842,1759169447350,-500.0,0.0001726,2]
[388441844,1759169447361,-150.0,0.00017264,2]
[388441846,1759169447374,-500.0,0.00017264,2]
[388441851,1759169447411,-500.0,0.00017264,2]
[388441853,1759169447427,-500.0,0.00017264,2]
[388441856,1759169447445,-150.0,0.00017264,2]
[388441858,1759169447459,-500.0,0.00017264,2]
[388441860,1759169447475,-1501.0,0.00017264,2]
[388441863,1759169447488,-599.0,0.00017264,2]
[388441865,1759169447502,-150.0,0.00017264,2]
[388441867,1759169447517,-500.0,0.00017264,2]
[388441870,1759169447531,-150.0,0.00017264,2]
[388441872,1759169447544,-150.0,0.00017264,2]
[388441875,1759169447557,-150.0,0.00017264,2]
[388441877,1759169447570,-150.0,0.00017274,2]
[388441879,1759169447583,-255.98096543,0.00017274,2]
[388441882,1759169447596,-150.0,0.00017274,2]
[388441884,1759169447609,-150.0,0.00017274,2]
[388441886,1759169447621,-150.0,0.00017274,2]
[388441889,1759169447634,-500.0,0.00017274,2]
[388441891,1759169447648,-150.0,0.00017274,2]
[388441894,1759169447661,-150.0,0.00017274,2]
[388441896,1759169447674,-204.16280644,0.00017274,2]
[388441898,1759169447688,-150.0,0.00017274,2]
[388441901,1759169447702,-165.60462916,0.00017275,2]
[388441903,1759169447714,-10272.10520533,0.00017292,2]
[388441905,1759169447728,-167.33,0.000173,2]
[388441908,1759169447740,-412.39,0.000173,2]
[388441910,1759169447753,-473.47,0.000173,2]
[388441913,1759169447766,-412.39,0.000173,2]
[388441915,1759169447780,-381.44,0.000173,2]
[388441917,1759169447792,-151.0,0.00017344,2]
[388441920,1759169447805,-10652.17309792,0.00017347,2]
[388441922,1759169447818,-219.18378128,0.00017387,2]
[388441924,1759169447831,-332.13736684,0.00017388,2]
[388441928,1759169447853,-112.61263316,0.00017388,2]
[388441930,1759169447867,-196.48512899,0.000174,2]
[388441946,1759169448004,-276.98487101,0.000174,2]
[388441948,1759169448018,-1814.55954954,0.000174,2]
[388441951,1759169448033,-3478.58779029,0.000174,2]
[388441953,1759169448047,-11046.30350255,0.00017402,2]
[388441955,1759169448060,-150.0,0.00017411,2]
[388441958,1759169448073,-9215.08410716,0.00017457,2]
[388441961,1759169448095,-2239.93262498,0.00017457,2]
[388441964,1759169448108,-165.60462916,0.00017463,2]
[388441966,1759169448122,-2134.77230853,0.0001748,2]
[388442564,1759169467194,228.21,0.00025037,120]
[388442591,1759169497708,474.674134,0.00016535,2]
[388442731,1759169785082,165.63,0.00016546,2]
[388442747,1759169808423,672.45,0.00016546,2]
[388442772,1759169842674,153.78,8.293e-05,2]
[388442774,1759169842899,153.78,9.478e-05,2]
[388442775,1759169843083,153.78,0.00010662,2]
[388442781,1759169843290,153.78,0.00011847,2]
[388442782,1759169843524,153.78,0.00013032,2]
[388442787,1759169843759,153.78,0.00014217,2]
[388442788,1759169843964,153.78,0.00015401,2]
[388442789,1759169844176,153.78,0.00016586,2]
[388442790,1759169847041,1580.93645936,0.00016506,2]
[388442806,1759169869225,3240.13,0.00016586,2]
[388442839,1759169910952,1000.0,0.00016561,2]
[388442843,1759170022745,184.02,0.00016288,2]
[388442844,1759170031055,4817.0,0.00016594,2]
[388442845,1759170065070,700.0,0.0001527,2]
[388442846,1759170066632,700.0,0.00016229,2]
[388442847,1759170128622,239.84119403,0.00016596,2]
[388442848,1759170130792,1388.75,0.00016248,2]
[388442849,1759170131470,8260.13072239,0.00016596,2]
[388442850,1759170133914,150.0,0.00016348,7]
[388442851,1759170137093,153.19917327,0.00016596,2]
[388442852,1759170155695,3000.0,0.00016596,2]
[388442853,1759170161370,599.60298507,0.00016596,2]
[388442854,1759170180621,3151.54,0.00016017,2]
[388442855,1759170181976,358.45,0.00016017,2]
[388442856,1759170182396,191.9,0.00016017,2]
[388442896,1759170210202,1444.0,0.00029041,120]
[388443044,1759170257044,384.25,0.00015961,2]
[388443081,1759170272363,176.12513366,0.00016602,2]
[388443082,1759170272408,552.48754377,0.00016602,2]
[388443083,1759170272451,500.0,0.00016602,2]
[388443084,1759170272509,500.0,0.00016602,2]
[388443085,1759170272561,500.0,0.00016602,2]
[388443086,1759170272607,500.0,0.00016602,2]
[388443087,1759170272680,500.0,0.00016602,2]
[388443088,1759170272737,500.0,0.00016602,2]
[388443089,1759170272788,197.36810512,0.00016602,2]
[388443090,1759170272838,500.0,0.00016602,2]
[388443091,1759170272884,500.0,0.00016602,2]
[388443092,1759170272931,500.0,0.00016602,2]
[388443093,1759170272973,500.0,0.00016602,2]
[388443094,1759170273034,500.0,0.00016602,2]
[388443095,1759170273099,500.0,0.00016602,2]
[388443096,1759170273154,500.0,0.00016602,2]
[388443097,1759170273219,500.0,0.00016602,2]
[388443098,1759170273272,500.0,0.00016602,2]
[388443099,1759170273329,500.0,0.00016602,2]
[388443173,1759170330026,219.67,0.00016002,2]
[388443174,1759170337865,307.07,0.00016002,2]
[388443175,1759170367203,364.77,0.00016006,2]
[388443178,1759170411342,441.3446,0.00016502,2]
[388443179,1759170437042,10000.0,0.00030137,120]
[388443180,1759170450654,318.4611078,0.00016602,2]
[388443181,1759170490844,5000.0,0.00030137,120]
[388443186,1759170517132,655.02,0.00015974,2]
[388443194,1759170544261,250.0,0.00015974,2]
[388443214,1759170601201,1200.0,0.00016601,2]
[388443240,1759170631951,-926.01549467,0.00016602,2]
[388443241,1759170631965,-273.98450533,0.00016602,2]
[388443242,1759170631975,-288.51549467,0.00016602,2]
[388443243,1759170632058,-11.48450533,0.00016602,2]
[388443244,1759170632067,-300.0,0.00016602,2]
[388443245,1759170632077,-250.0,0.00016602,2]
[388443246,1759170632087,-7289.96287081,0.00016603,5]
[388443247,1759170632097,-773.07,0.00016605,2]
[388443248,1759170632107,-179.41879141,0.00016606,2]
[388443249,1759170632116,-6719.31,0.00016607,2]
[388443250,1759170632126,-865.23,0.00016607,2]
[388443251,1759170632135,-150.0,0.00016619,2]
[388443252,1759170632146,-150.0,0.00016619,2]
[388443253,1759170632155,-150.0,0.00016619,2]
[388443254,1759170632165,-150.0,0.00016619,2]
[388443255,1759170632174,-150.0,0.00016619,2]
[388443256,1759170632184,-150.0,0.00016619,2]
[388443257,1759170632193,-150.0,0.00016619,2]
[388443258,1759170632202,-150.0,0.00016619,2]
[388443260,1759170632212,-150.0,0.00016619,2]
[388443261,1759170632225,-150.0,0.00016632,2]
[388443262,1759170632235,-550.0,0.0001664,2]
[388443263,1759170632245,-599.60298507,0.00016641,2]
[388443264,1759170632255,-8260.13072239,0.00016641,2]
[388443265,1759170632264,-12555.24,0.00016641,2]
[388443266,1759170632274,-287.45263396,0.00016641,2]
[388443268,1759170632284,-239.84119403,0.00016641,2]
[388443270,1759170632293,-4817.0,0.00016648,2]
[388443271,1759170632303,-1472.7,0.00016657,2]
[388443272,1759170632313,-228.21,0.00016692,2]
[388443273,1759170632323,-8565.75555911,0.00016696,2]
[388443274,1759170632333,-1067.0,0.00016696,2]
[388443276,1759170632343,-8882.6885148,0.00016751,2]
[388443278,1759170632353,-500.0,0.00016761,2]
[388443280,1759170632362,-255.86246607,0.00016761,2]
[388443282,1759170632372,-351.84707537,0.00016761,2]
[388443284,1759170632381,-5398.0,0.00016762,2]
[388443287,1759170632391,-1067.0,0.00016762,2]
[388443288,1759170632400,-5398.0,0.00016768,2]
[388443290,1759170632410,-1067.0,0.00016776,2]
[388443293,1759170632419,-9211.34798985,0.00016806,2]
[388443296,1759170632429,-358.45,0.00016818,2]
[388443299,1759170632438,-150.0,0.0001685,2]
[388443303,1759170632449,-1067.0,0.0001686,2]
[388443306,1759170632458,-9552.16786547,0.00016861,2]
[388443308,1759170632468,-151.86179462,0.00016875,2]
[388443310,1759170632477,-153.31795381,0.00016875,2]
[388443312,1759170632487,-151.13318322,0.00016875,2]
[388443314,1759170632496,-151.0,0.00016875,2]
[388443316,1759170632506,-200.0,0.00016875,2]
[388443318,1759170632515,-151.0,0.00016875,2]
[388443320,1759170632524,-151.0,0.00016875,2]
[388443322,1759170632534,-165.6218766,0.00016875,2]
[388443324,1759170632544,-500.0,0.00016875,2]
[388443326,1759170632554,-500.0,0.00016875,2]
[388443328,1759170632563,-500.0,0.00016875,2]
[388443330,1759170632572,-500.0,0.00016875,2]
[388443332,1759170632581,-151.0,0.00016875,2]
[388443334,1759170632591,-500.0,0.00016875,2]
[388443336,1759170632600,-500.0,0.00016875,2]
[388443338,1759170632609,-500.0,0.00016875,2]
[388443340,1759170632618,-500.0,0.00016875,2]
[388443342,1759170632627,-200.0,0.00016875,2]
[388443344,1759170632636,-500.0,0.00016875,2]
[388443346,1759170632646,-500.0,0.00016875,2]
[388443348,1759170632655,-500.0,0.00016875,2]
[388443350,1759170632664,-500.0,0.00016875,2]
[388443352,1759170632674,-322.6107,0.00016875,2]
[388443354,1759170632684,-200.0,0.00016875,2]
[388443356,1759170632698,-200.0,0.00016875,2]
[388443358,1759170632708,-200.0,0.00016875,2]
[388443360,1759170632717,-500.0,0.00016875,2]
[388443363,1759170632727,-200.0,0.00016875,2]
[388443365,1759170632737,-500.0,0.00016875,2]
[388443367,1759170632746,-200.0,0.00016875,2]
[388443369,1759170632756,-500.0,0.00016875,2]
[388443371,1759170632765,-228.00414408,0.00016875,2]
[388443373,1759170632775,-500.0,0.00016875,2]
[388443375,1759170632784,-500.0,0.00016875,2]
[388443377,1759170632794,-500.0,0.00016875,2]
[388443379,1759170632803,-500.0,0.00016875,2]
[388443381,1759170632813,-500.0,0.00016875,2]
[388443383,1759170632822,-500.0,0.00016875,2]
[388443385,1759170632831,-500.0,0.00016875,2]
[388443387,1759170632840,-500.0,0.00016875,2]
[388443389,1759170632850,-500.0,0.00016875,2]
[388443391,1759170632859,-151.0,0.00016875,2]
[388443393,1759170632868,-623.58710448,0.00016875,2]
[388443395,1759170632877,-773.07,0.00016879,2]
[388443397,1759170632888,-1067.0,0.00016898,2]
[388443399,1759170632898,-9905.5980765,0.00016916,2]
[388443401,1759170632907,-10272.10520533,0.00016971,2]
[388443404,1759170632917,-1572.0005722,0.00016998,2]
[388443406,1759170632931,-1448.9664278,0.00016998,2]
[388443408,1759170632940,-168.387,0.00016998,2]
[388443410,1759170632949,-969.14300065,0.00016999,5]
[388443412,1759170632961,-30.85699935,0.00016999,5]
[388443414,1759170632970,-478.71588089,0.00016999,5]
[388443417,1759170632987,-472.26001037,0.00016999,5]
[388443419,1759170632998,-49.02410874,0.00016999,5]
[388443421,1759170633007,-455.64195126,0.00016999,5]
[388443424,1759170633019,-544.35804874,0.00016999,5]
[388443426,1759170633029,-104.29060996,0.00016999,5]
[388443428,1759170633040,-734.56262366,0.00016999,5]
[388443430,1759170633052,-161.14676638,0.00016999,5]
[388443432,1759170633062,-947.08960999,0.00016999,5]
[388443435,1759170633074,-52.91039001,0.00016999,5]
[388443437,1759170633082,-264.40661,0.00016999,5]
[388443579,1759170638009,-735.59339,0.00016999,5]
[388443580,1759170638020,-1000.0,0.00016999,5]
[388443581,1759170638031,-526.70412695,0.00016999,5]
[388443582,1759170638044,-473.29587305,0.00016999,5]
[388443583,1759170638058,-30.65269899,0.00016999,5]
[388443584,1759170638071,-303.6739081,0.00016999,5]
[388443585,1759170638082,-3257.87,0.00016999,2]
[388443586,1759170638093,-250.0,0.00017,2]
[388443587,1759170638103,-167.7,0.00017,2]
[388443588,1759170638115,-946.85,0.00017,2]
[388443589,1759170638126,-67.76897698,0.00017,2]
[388443590,1759170638149,-1100.4994,0.00017,2]
[388443591,1759170638162,-445.21162302,0.00017,2]
[388443592,1759170638172,-1196.09,0.00017,2]
[388443593,1759170638183,-412.39,0.00017,2]
[388443594,1759170638195,-167.7,0.00017,2]
[388443595,1759170638206,-887.50793781,0.00017021,2]
[388443596,1759170638216,-1049.65413637,0.00017026,2]
[388443779,1759170639979,-9602.51896155,0.00017026,2]
[388443781,1759170639990,-1067.0,0.00017028,2]
[388443784,1759170640000,-3175.33205845,0.00017052,2]
[388443788,1759170640033,-1641.66794155,0.00017052,2]
[388443790,1759170640043,-150.0,0.00017081,2]
[388443792,1759170640055,-3120.37048829,0.00017081,2]
[388443795,1759170640068,-7925.93301426,0.00017081,2]
[388443797,1759170640079,-1067.0,0.00017098,2]
[388443799,1759170640090,-1067.0,0.00017109,2]
[388443801,1759170640099,-904.95298575,0.0001711,2]
[388443805,1759170640126,-162.04701425,0.0001711,2]
[388443807,1759170640136,-151.0,0.00017116,2]
[388443809,1759170640147,-222.38028575,0.00017119,2]
[388443812,1759170640159,-844.61971425,0.00017119,2]
[388443814,1759170640170,-1067.0,0.00017129,2]
[388443816,1759170640181,-209.1877857,0.00017136,2]
[388444107,1759170643046,-11245.82894644,0.00017136,2]
[388444111,1759170643058,-1067.0,0.0001715,2]
[388444113,1759170643068,-773.07,0.00017153,2]
[388444115,1759170643078,-1067.0,0.00017166,2]
[388444117,1759170643088,-385.9,0.00017182,2]
[388444119,1759170643097,-700.0,0.00017188,2]
[388444121,1759170643107,-6519.34293869,0.00017191,2]
[388444123,1759170643116,-1924.0,0.000172,2]
[388444125,1759170643126,-1000.0,0.000172,2]
[388444127,1759170643137,-1000.0,0.000172,2]
[388444129,1759170643147,-1000.0,0.000172,2]
[388444131,1759170643156,-1000.0,0.000172,2]
[388444133,1759170643166,-1067.0,0.00017235,2]
[388444135,1759170643175,-150.0,0.00017235,2]
[388444138,1759170643185,-150.0,0.00017235,2]
[388444140,1759170643195,-150.0,0.00017264,2]
[388444142,1759170643205,-150.0,0.00017264,2]
[388444144,1759170643217,-150.0,0.00017264,2]
[388444146,1759170643230,-150.0,0.00017264,2]
[388444148,1759170643241,-500.0,0.00017264,2]
[388444150,1759170643251,-3257.87,0.00017273,2]
[388444152,1759170643260,-150.0,0.00017274,2]
[388444154,1759170643271,-150.0,0.00017274,2]
[388444156,1759170643280,-150.0,0.00017274,2]
[388444158,1759170643290,-150.0,0.00017274,2]
[388444160,1759170643303,-150.0,0.00017274,2]
[388444162,1759170643312,-150.0,0.00017274,2]
[388444164,1759170643322,-150.0,0.00017274,2]
[388444166,1759170643332,-500.0,0.00017274,2]
[388444168,1759170643342,-150.0,0.00017274,2]
[388444170,1759170643352,-213.7985424,0.00017274,2]
[388444173,1759170643362,-500.0,0.00017274,2]
[388444175,1759170643372,-150.0,0.00017274,2]
[388444177,1759170643382,-150.0,0.00017274,2]
[388444179,1759170643392,-150.0,0.00017274,2]
[388444181,1759170643402,-150.0,0.00017274,2]
[388444183,1759170643412,-150.0,0.00017274,2]
[388444185,1759170643422,-114.66848176,0.00017274,2]
[388444188,1759170643440,-385.33151824,0.00017274,2]
[388444190,1759170643449,-150.0,0.00017274,2]
[388444192,1759170643459,-411.85575055,0.00017274,2]
[388444194,1759170643471,-88.14424945,0.00017274,2]
[388444196,1759170643481,-150.0,0.00017274,2]
[388444199,1759170643492,-500.0,0.00017274,2]
[388444201,1759170643502,-150.0,0.00017274,2]
[388444203,1759170643511,-150.0,0.00017274,2]
[388444205,1759170643521,-453.74498463,0.00017274,2]
[388444207,1759170643532,-46.25501537,0.00017274,2]
[388444209,1759170643543,-150.0,0.00017274,2]
[388444211,1759170643553,-155.9399252,0.00017274,2]
[388444213,1759170643562,-352.98644156,0.00017274,2]
[388444219,1759170643605,-147.01355844,0.00017274,2]
[388444221,1759170643614,-267.48088858,0.00017274,2]
[388444699,1759170648404,-232.51911142,0.00017274,2]
[388444701,1759170648414,-150.0,0.00017274,2]